Cogmind - Beta 17.1 @@@ ROGUE MODE // 2026.09.07 @ 19:25:31 Player: LandRaider Result: Destroyed by P-80 Master with Gamma Rifle Performance ------------- Evolutions (8) 4000 Regions Visited (9) 1800 Robots Destroyed (123) 615 Value Destroyed (4667) 4667 Prototype IDs (33) 660 Alien Tech Used (0) 0 Bonus (24094) 24094 TOTAL SCORE: 35836 Bonus ------- Triggered High Security 500 High Alert Combat Kills 2433 Follower Combat Kills 5984 Prayed to X0-1V1 5000 Major X0-1V1 Interference 7400 Subatomizer Sterilization 3000 Scanned by Researcher 500 Friendly Fire -723 Cogmind --------- Core Integrity 0/1370 Matter 589/1300 Energy 52/1300 System Corruption 71% Temperature Cool (0) Movement Core (1400) Ox27 Location -2/Testing Parts ------- > --- POWER (2) -------- (None) > --- PROPULSION (6) --- (None) > --- UTILITY (11) ----- Huge Storage Unit Experimental Matter Compressor Machine Analyzer Enhanced Optical Array Advanced Signal Interpreter Core Analyzer > --- WEAPON (7) ------- Nanosword > --- INVENTORY (25) --- Medium Storage Unit Improved Remote Datajack Phasing Sabre Plasma Sword Peak State ------------ > --- POWER ------------ Antimatter Reactor Light Quantum Reactor > --- PROPULSION ------- Armored Medium Treads Biometal Heavy Treads Enhanced Armored Heavy Treads Flexi-carbon Leg > --- UTILITY ---------- Advanced Cooling System Huge Storage Unit Experimental Energy Well Machine Analyzer Enhanced Optical Array Long-range Sensor Array Advanced Signal Interpreter Core Analyzer Improved Remote Force Field System Shield X0-1V1's Piety Tracker > --- WEAPON ----------- Gamma Rifle Enhanced Quantum Rifle Cooled Nova Cannon Plasma Sword > --- INVENTORY -------- Light Antimatter Reactor Particle Reactor Compact Particle Reactor Quantum Reactor Myomer Leg Biometal Leg Centrium Leg Improved Antigrav System Improved Antigrav System Improved Linear Gravjet Experimental Power Amplifier Advanced Heat Sink Advanced Heat Sink Experimental Matter Compressor Seismic Detector Advanced Phase Shifter Experimental Shock Absorption System Improved Remote Shield Gamma Rifle Phase Gun Enhanced Quantum Rifle Heavy Machine Gun Gamma Bomb Array Improved Remote Datajack Phasing Sabre [Rating: 183] Favorites ----------- Power Antimatter Reactor Engine Subdweller Power Source Power Core Neutrino Core Reactor Antimatter Reactor Propulsion Centrium Wheel Treads Improved Treads Leg Flexi-carbon Leg Wheel Centrium Wheel Hover Unit Improved Antigrav System Utility X0-1V1's Piety Tracker Device X0-1V1's Piety Tracker Storage Huge Storage Unit Processor Machine Analyzer Hackware Advanced Hacking Suite Protection Improved Medium Armor Plating Weapon Railgun Energy Gun Gamma Rifle Energy Cannon Long-range Proton Cannon Ballistic Gun Railgun Ballistic Cannon Enhanced Gauss Cannon Launcher Subdweller Shrapnel Launcher Special Weapon Improved Remote Datajack Slashing Weapon Phasing Sabre Build | -11 -10 -10 -7 -5 -4 -4 -3 -2 -2 ------- Run | Yrd Mat Sub Scr Fac Fac Ext Res Res Tes Slots Evolved 16 | . . . . 10 2 . 2 2 . Power 1 | . . . . 1 . . . . . Propulsion 5 | . . . . 4 1 . . . . Utility 8 | . . . . 5 1 . 1 1 . Weapon 2 | . . . . . . . 1 1 . Parts Attached 174 | 8 8 20 10 24 11 15 30 31 17 Power 23 | 1 . 4 2 6 2 1 2 3 2 Engine 8 | 1 . 3 2 2 . . . . . Core 5 | . . 1 . 4 . . . . . Reactor 10 | . . . . . 2 1 2 3 2 Propulsion 38 | 2 2 5 . 3 2 2 10 8 4 Treads 6 | . . 2 . . . 1 1 2 . Leg 14 | 2 . . . 1 . . 6 1 4 Wheel 13 | . 2 3 . 2 2 1 3 . . Hover 5 | . . . . . . . . 5 . Flight . | . . . . . . . . . . Utility 66 | 2 5 4 5 10 4 10 9 12 5 Device 40 | 1 2 3 5 6 2 7 4 6 4 Storage 8 | 1 3 1 . 1 . . 1 . 1 Processor 10 | . . . . 3 . 1 2 4 . Hackware 3 | . . . . . 1 . 1 1 . Protection 5 | . . . . . 1 2 1 1 . Artifact . | . . . . . . . . . . Weapon 47 | 3 1 7 3 5 3 2 9 8 6 Energy Gun 17 | 1 . 3 1 2 . . 3 5 2 Energy Cannon 9 | . . 1 . 1 1 1 2 . 3 Ballistic Gun 9 | 2 . 1 . 1 1 1 1 1 1 Ballistic Cannon 6 | . . 1 2 . 1 . 2 . . Launcher 3 | . 1 1 . . . . 1 . . Special Weapon 1 | . . . . 1 . . . . . Impact Weapon . | . . . . . . . . . . Slashing Weapon 2 | . . . . . . . . 2 . Piercing Weapon . | . . . . . . . . . . Special Melee Weapon . | . . . . . . . . . . Unidentified Prototypes 12 | . 1 . . 2 1 . 1 5 2 Parts Lost 86 | . . 14 3 1 1 7 23 6 31 Power 11 | . . 2 1 1 . . 2 . 5 Propulsion 19 | . . 4 . . . 1 5 3 6 Utility 30 | . . 1 1 . . 4 11 1 12 Weapon 26 | . . 7 1 . 1 2 5 2 8 Highest Loss Streak 31 | . . 3 2 1 1 3 5 4 31 To Critical Strikes . | . . . . . . . . . . Average Backups 16 | 5 12 18 13 12 23 23 22 15 23 Power 1 | . 1 1 . . 1 2 1 1 2 Propulsion 5 | 3 5 8 6 3 6 5 2 3 4 Utility 5 | . 3 4 4 3 8 9 10 4 8 Weapon 4 | . 1 4 2 4 6 5 6 4 6 Tool/Special . | . . . . . . . . . . Unused Backups 43 | . 3 7 17 4 4 3 1 2 2 Power 3 | . . 1 1 . . . . 1 . Propulsion 13 | . 3 1 5 1 1 2 . . . Utility 12 | . . 2 5 1 . 1 1 1 1 Weapon 13 | . . 2 6 1 3 . . . 1 Tool/Special 2 | . . 1 . 1 . . . . . Average Slot Usage (%) 78 | . 99 92 53 75 83 83 90 97 84 Engine 6 | . 14 12 7 6 . . . . . Reactor 2 | . . . . . 5 10 8 8 7 Treads 5 | . . 3 14 . . . 1 1 11 Leg 2 | . 16 . . . . . 17 3 1 Wheel 9 | . 10 22 . 9 14 13 4 9 . Device 14 | . 14 11 7 21 24 20 23 18 18 Storage 10 | . 14 14 12 3 4 5 4 7 8 Processor 4 | . . . . 10 9 10 11 14 16 Hackware 1 | . . . . . 1 5 2 3 1 Energy Gun 5 | . . 12 3 5 2 . 2 7 7 Ballistic Gun 2 | . 16 3 . 4 2 1 . 3 . Ballistic Cannon 2 | . . 4 2 7 2 3 4 . . Launcher 3 | . 11 6 4 . . . . . . Peak Build Rating 183 | 8 23 36 34 122 142 131 154 179 183 Average Rating 66 | 5 9 24 22 94 131 127 134 155 169 On Entrance 72 | . 8 23 33 34 122 129 128 67 177 Avg Prop Armor Cover (%) 10 | . . 14 . 8 . 3 9 12 6 Naked Turns . | . . . . . . . . . . Heaviest Build 216 | 13 57 216 213 135 147 150 181 155 161 Greatest Support 182 | 20 24 32 23 49 62 62 126 182 182 Greatest Overweight (x) 27 | 3 16 17 9 3 3 3 3 4 27 Average Overweight (x) 2 | . 1 3 6 1 2 2 1 3 . Largest Inventory Capacity 35 | 8 20 35 35 25 25 25 25 25 25 Average Capacity 25 | 7 14 22 32 20 25 25 25 25 25 Most Carried 35 | 8 19 35 34 25 25 25 25 25 25 Average Carried 20 | 5 12 21 21 12 24 24 22 15 22 Final Capacity 35 | 8 20 35 5 25 25 25 25 25 25 Final Carried 34 | 8 19 34 4 25 24 23 18 25 4 Class Distribution -------------------- 32% | Hauler-Mutant 29% | Mutant 10% | Skirmisher 8% | Scavenger-Skirmisher 6% | Scavenger-Assassin 4% | Commander-Skirmisher 4% | Assassin Dominant Class ---------------- Mutant | -10/Materials Mutant | -10/Subcaves Hauler-Mutant | -7/Scraptown Scavenger-Skirmisher | -5/Factory Skirmisher | -4/Factory Commander-Skirmisher | -4/Extension Skirmisher | -3/Research Scavenger-Assassin | -2/Research Assassin | -2/Testing Resources | -11 -10 -10 -7 -5 -4 -4 -3 -2 -2 ----------- Run | Yrd Mat Sub Scr Fac Fac Ext Res Res Tes Matter Collected 6424 | 291 251 859 586 1491 558 858 833 311 386 Remotely 109 | . . . . 109 . . . . . Salvage Created 4873 | 116 490 541 . 442 124 1135 825 506 694 Parts 251 | 6 25 55 . 15 2 47 34 36 31 Haulers Intercepted 6 | . 2 . . 1 1 1 1 . . Recyclers Shooed 3 | . 3 . . . . . . . . Parts Field Recycled 22 | . 22 . . . . . . . . Retrieved Matter 193 | . 193 . . . . . . . . Parts Self-Destructed 40 | . . 40 . . . . . . . Prevented . | . . . . . . . . . . Parts Restored . | . . . . . . . . . . Kills | -11 -10 -10 -7 -5 -4 -4 -3 -2 -2 ------- Run | Yrd Mat Sub Scr Fac Fac Ext Res Res Tes Combat Hostiles Destroyed 87 | . 11 28 . 3 1 18 11 9 6 Melee 2 | . . . . . . . . 1 1 Guns 30 | . 3 6 . 3 . 5 1 8 4 Cannons 20 | . . 3 . . 1 7 8 . 1 AOE 31 | . 8 19 . . . 3 1 . . Classes Destroyed 22 | 2 4 3 . 4 . 5 2 1 1 Worker 3 | . . . . 1 . 1 . 1 . Builder 5 | . . . . . . 3 1 1 . Tunneler 2 | 2 . . . . . . . . . Hauler 6 | . 2 . . 1 1 1 1 . . Recycler 6 | 1 3 . . 1 . . . . 1 Mechanic 2 | . . . . 1 . 1 . . . Operator 3 | . . . . . . . 2 1 . Turret 1 | . . 1 . . . . . . . Watcher 4 | . 3 . . 1 . . . . . Swarmer 30 | . 6 16 . . . 4 . 4 . Saboteur 2 | . . . . . . 1 . 1 . Grunt 23 | . 5 5 . . . 6 5 1 1 Brawler 3 | . . . . . . 3 . . . Duelist 2 | . . . . . . . . 1 1 Protector 1 | . . . . . . 1 . . . Researcher 1 | . . . . . . . . . 1 Sentry 2 | . . . . 1 . 1 . . . Specialist 3 | . . . . . . . . . 3 Hunter 4 | . . . . . . 1 3 . . Programmer 10 | . . . . 2 1 1 3 2 1 Investigator 1 | . . . . . . . 1 . . Subdweller 7 | . . 7 . . . . . . . Zionite 2 | . . 2 . . . . . . . Best Kill Streak 7 | 2 7 5 . 2 1 4 2 6 3 Combat Bots Only 6 | . 6 5 . 1 1 4 2 4 3 Max Kills in Single Turn 5 | 1 3 5 . 1 1 3 1 1 1 Gunslinging . | . . . . . . . . . . Exploded 5 | . 3 5 . . . 3 1 . . Melee 1 | . . . . . . . . 1 1 Uniques/NPCs Destroyed 1 | . . . 1 . . . . . . Triborg (-7/Scraptown) Combat | -11 -10 -10 -7 -5 -4 -4 -3 -2 -2 -------- Run | Yrd Mat Sub Scr Fac Fac Ext Res Res Tes Hostile Shots Fired 1135 | . 32 122 8 25 16 132 323 71 406 Missed 364 | . 9 42 1 5 7 49 106 25 120 Hits 771 | . 23 80 7 20 9 83 217 46 286 Melee 39 | . . . . . . 5 16 6 12 Projectile 732 | . 23 80 7 20 9 78 201 40 274 AOE 2 | . . 1 . . . . 1 . . Critical Strikes 52 | . 1 . . 1 1 4 22 3 20 Part Disruptions 5 | . . . . . . . 2 . 3 Damage Taken 16493 | . 263 1451 168 557 578 1413 3932 964 7167 Core 2462 | . 75 316 28 68 45 119 417 47 1347 Absorbed by Shields 2634 | . . . . . . 634 1206 164 630 Reduced by Siege Mode 116 | . . . . . . . . . 116 Ignored by Resistances 335 | . . . . . . 20 315 . . Core Remaining (%) 86 | 100 . . 93 92 . 84 65 . . Volleys Fired 436 | 12 44 91 1 35 30 99 80 24 20 Largest 5 | 2 2 2 2 4 4 2 3 3 5 Hottest 406 | 40 50 116 84 199 210 161 222 204 406 Shots Fired 891 | 24 87 141 2 95 64 175 193 60 50 Gun 444 | 24 71 98 . 39 13 41 63 60 35 Cannon 376 | . . 15 2 54 51 113 126 . 15 Launcher 48 | . 16 28 . . . . 4 . . Special 23 | . . . . 2 . 21 . . . Kinetic 484 | 24 71 73 2 77 35 78 97 23 4 Thermal 203 | . . 33 . 12 28 33 52 13 32 Explosive 39 | . 16 23 . . . . . . . Electromagnetic 142 | . . 12 . 4 1 43 44 24 14 Robot Hit Streak 17 | 9 10 17 4 9 6 17 10 10 11 Robot Miss Streak 8 | 1 4 7 . 3 3 3 8 3 3 Penetration Max 1 | . . . . . . 1 1 1 . Secondary Targets 1 | . . . . . . . . 1 . Max Gunslinging Chain 1 | . . . . . . . . 1 . Shots Hit Robots 497 | 17 51 67 2 36 31 123 98 33 39 Core Hits 252 | 6 34 48 . 14 10 47 51 24 18 Critical Kills 3 | . . . . . . 1 . 2 . Critical Parts Destroyed 1 | 1 . . . . . . . . . Critical Strikes 20 | 1 . 2 1 1 1 6 4 3 1 Burn 1 | . . . . . . . 1 . . Meltdown 1 | . . . . . . 1 . . . Destroy 3 | 1 . . . . . . . 2 . Blast 11 | . . 2 1 1 1 3 3 . . Corrupt 3 | . . . . . . 2 . 1 . Sever 1 | . . . . . . . . . 1 Melee Attacks 28 | . . . . . . . . 22 6 Impact . | . . . . . . . . . . Slashing 28 | . . . . . . . . 22 6 Piercing . | . . . . . . . . . . Sneak Attacks . | . . . . . . . . . . Combat Hostiles . | . . . . . . . . . . Follow-up Attacks . | . . . . . . . . . . Damage Inflicted 15542 | 135 1143 2552 61 916 741 4096 3606 912 1380 Guns 5189 | 135 374 663 . 491 179 875 809 912 751 Cannons 6834 | . . 182 61 408 562 2714 2448 . 459 Explosions 3271 | . 769 1707 . 17 . 441 337 . . Melee 170 | . . . . . . . . . 170 Ramming 78 | . . . . . . 66 12 . . Kinetic 7501 | 135 374 1405 61 701 530 1946 1880 375 94 Thermal 3286 | . . 160 . 157 211 975 729 240 814 Explosive 1637 | . 769 851 . 17 . . . . . Electromagnetic 2870 | . . 136 . 41 . 1109 985 297 302 Impact . | . . . . . . . . . . Slashing 170 | . . . . . . . . . 170 Piercing . | . . . . . . . . . . Highest Corruption 70 | . . 26 . 7 4 4 12 . 70 Average Corruption 8 | . . 12 . 3 4 3 9 . 15 Corruption Purged 6 | . . . . . . 6 . . . Corruption Blocked . | . . . . . . . . . . Effects 119 | . . 44 . 10 3 22 21 . 19 Message Errors 27 | . . 9 . 1 2 4 6 . 5 Matter Fused 22 | . . 7 . 3 . 3 5 . 4 Heat Flow Errors 10 | . . 4 . 2 . 2 . . 2 Energy Discharges 19 | . . 7 . 1 . 5 3 . 3 Parts Fused 1 | . . 1 . . . . . . . Data Loss (minor) 10 | . . 4 . 1 1 2 1 . 1 Data Loss (major) 13 | . . 6 . 1 . 2 3 . 1 Misfires 7 | . . 3 . . . 2 1 . 1 Alerts 4 | . . 3 . . . 1 . . . Misdirections 1 | . . . . . . . . . 1 Weapon Failures 5 | . . . . 1 . 1 2 . 1 Overload Shots . | . . . . . . . . . . Overflow Damage 284 | . 27 108 26 25 26 33 8 . 31 Projectiles 140 | . . 16 26 25 26 8 8 . 31 Explosions 119 | . 27 92 . . . . . . . Melee 25 | . . . . . . 25 . . . Knockbacks 23 | . . 1 . 1 1 8 12 . . Impact 1 | . . . . . . 1 . . . Kinetic 20 | . . 1 . 1 1 7 10 . . Secondary 2 | . . . . . . . 2 . . Self-Inflicted Damage 505 | . 40 161 . 129 . 33 142 . . Shots 19 | . 1 4 . 2 . . 12 . . Rammed 3 | . . . . . . 2 1 . . Targets Rammed 3 | . . . . . . 2 1 . . Kicked . | . . . . . . . . . . Crushed . | . . . . . . . . . . Highest Temperature 364 | . 30 251 . 329 161 195 148 . 364 Average Temperature 61 | . 9 63 . 72 52 73 46 . 107 Received Heat Transfer 1550 | . 72 237 . 45 45 123 700 58 270 Siege Activations 1 | . . . . . . . . . 1 Total Turns 12 | . . . . . . . . . 12 Longest Duration 12 | . . . . . . . . . 12 Martial Activations . | . . . . . . . . . . Shielding Activations . | . . . . . . . . . . Robots Disrupted 1 | . . 1 . . . . . . . Combat Hostiles 1 | . . 1 . . . . . . . Robots Corrupted 4 | . . . . . . 3 1 . . Combat Hostiles 3 | . . . . . . 2 1 . . Parts Fried 16 | . . . . 1 . 6 6 2 1 Impact Corruptions 1 | . . . . . . 1 . . . Robots Melted 1 | . . . . . . 1 . . . Combat Hostiles 1 | . . . . . . 1 . . . Parts Melted 10 | . . 1 . 6 . 1 1 . 1 Heat Transferred 4472 | . . 360 . 185 400 1250 1093 296 888 Parts Sabotaged 3 | . . . . . . . 3 . . Parts Stolen . | . . . . . . . . . . Parts Stripped . | . . . . . . . . . . Power Chain Reactions 2 | . . . . . . . 2 . . Alert | -11 -10 -10 -7 -5 -4 -4 -3 -2 -2 ------- Run | Yrd Mat Sub Scr Fac Fac Ext Res Res Tes Maximum Alert Level 5 | . 1 . . 3 3 5 5 5 4 Low Security (%) 19 | 100 86 . . 45 . . . . . Level 1 9 | . 13 . . 22 37 7 . . . Level 2 10 | . . . . 11 21 31 . . . Level 3 16 | . . . . 20 40 20 . . 81 Level 4 4 | . . . . . . 3 10 5 18 Level 5 30 | . . . . . . 37 42 94 . High Security 7 | . . . . . . . 47 . . Max Security . | . . . . . . . . . . Sterilizations 1 | . . . . 1 . . . . . Peak Influence 3164 | 10 244 . . 752 986 2870 3164 1936 1133 Initial 1768 | . . . . . 343 466 1499 1768 1074 Average 1106 | 1 82 . . 301 603 1302 2121 1759 1011 Influence Increases 9559 | 15 458 505 . 1158 901 3280 2383 655 204 Destroy 0b10 Robot/C 4040 | . 220 440 . 320 340 1280 1120 180 140 Destroy 0b10 Robot/NC 315 | 15 40 5 . 45 5 90 95 15 5 Destroy Leader 588 | . 60 . . 66 82 142 198 20 20 Allied During Kill 1976 | . . . . 125 178 1269 404 . . Successful Hack 138 | . 15 . . . 21 43 21 38 . Select Force Hacks 60 | . 30 . . . 30 . . . . Disable Machine 420 | . 15 . . 225 15 60 60 15 30 Destroy Structure 1227 | . 78 . . 362 230 234 260 54 9 Lose Combat Pursuer 345 | . . 60 . 15 . . 225 45 . Miscellaneous 450 | . . . . . . 162 . 288 . Influence Decreases 8837 | 15 322 486 155 456 651 1375 2096 1888 1393 Entered New Map 4637 | . . 66 155 . 359 486 1358 1376 837 Time Decay 2840 | 15 322 320 . 386 262 559 278 452 246 Lost Part 790 | . . 100 . 10 10 70 230 60 310 Lost Ally 420 | . . . . 60 20 260 80 . . Purge Threat 150 | . . . . . . . 150 . . Squads Dispatched 62 | . 2 . . 4 6 10 28 9 3 Investigation 6 | . 1 . . 1 1 2 1 . . Extermination 7 | . . . . 1 1 . 1 3 1 Reinforcement 12 | . 1 . . . 1 3 3 2 2 Assault 33 | . . . . 2 . 5 22 4 . Garrison 4 | . . . . . 3 . 1 . . Intercept . | . . . . . . . . . . Searches Triggered . | . . . . . . . . . . Construction Impeded 4 | . . . . . 1 3 . . . Haulers Reinforced . | . . . . . . . . . . Active Scanning Responses . | . . . . . . . . . . Cargo Convoy Interrupts 1 | . . . . 1 . . . . . Stealth | -11 -10 -10 -7 -5 -4 -4 -3 -2 -2 --------- Run | Yrd Mat Sub Scr Fac Fac Ext Res Res Tes Distress Signals 6 | . 2 . . . . 2 1 . 1 Communications Jammed . | . . . . . . . . . . Distress Signals . | . . . . . . . . . . Times Spotted 271 | . 16 31 6 13 14 53 95 22 21 Peak Tracking Total 17 | . 6 5 5 7 3 7 17 6 14 Tactical Retreats 11 | . . 2 . 1 . . 6 2 . Traps | -11 -10 -10 -7 -5 -4 -4 -3 -2 -2 ------- Run | Yrd Mat Sub Scr Fac Fac Ext Res Res Tes Traps Triggered 15 | . 1 5 . 1 . 6 2 . . Indirectly 1 | . . . . . . . 1 . . Trap Hack Attempts . | . . . . . . . . . . Triggered . | . . . . . . . . . . Disarmed . | . . . . . . . . . . Reprogrammed . | . . . . . . . . . . Reused . | . . . . . . . . . . Traps Extracted . | . . . . . . . . . . Installed . | . . . . . . . . . . Triggered . | . . . . . . . . . . Most Traps Carried 3 | . . 3 . . . . . . . Machines | -11 -10 -10 -7 -5 -4 -4 -3 -2 -2 ---------- Run | Yrd Mat Sub Scr Fac Fac Ext Res Res Tes Machines Disabled 40 | . 1 5 7 15 1 4 4 1 2 Max in Single Turn 4 | . 1 4 . 3 1 2 1 1 1 Garrison Access 1 | . . . . 1 . . . . . Energy Cycler 1 | . . . . . . 1 . . . Machines Repaired . | . . . . . . . . . . Machines Dismantled . | . . . . . . . . . . Machines Sabotaged . | . . . . . . . . . . Overloaded Fab Kills . | . . . . . . . . . . Hacking | -11 -10 -10 -7 -5 -4 -4 -3 -2 -2 --------- Run | Yrd Mat Sub Scr Fac Fac Ext Res Res Tes Machines Accessed 35 | . 4 3 . 5 5 9 5 4 . Terminals 25 | . 3 . . 2 4 9 3 4 . Fabricators . | . . . . . . . . . . Repair Stations . | . . . . . . . . . . Recycling Units 6 | . 1 . . 2 1 . 2 . . Scanalyzers 1 | . . . . 1 . . . . . Garrison Access . | . . . . . . . . . . Total Hacks 84 | . 20 4 . 11 11 17 12 9 . Successful 44 | . 12 4 . 4 7 9 6 2 . Failed 40 | . 8 . . 7 4 8 6 7 . Catastrophic 6 | . 1 . . 1 2 1 . 1 . Database Lockouts . | . . . . . . . . . . Manual 30 | . 7 . . 5 3 2 5 8 . Terminals 64 | . 19 . . 4 9 17 6 9 . Fabricators . | . . . . . . . . . . Repair Stations . | . . . . . . . . . . Recycling Units 13 | . 1 . . 4 2 . 6 . . Scanalyzers 3 | . . . . 3 . . . . . Garrison Access . | . . . . . . . . . . Terminal Hacks 27 | . 9 4 . . 4 9 1 . . Record 10 | . 6 1 . . . 3 . . . Part Schematic 1 | . . . . . 1 . . . . Prototype ID Bank 3 | . 2 . . . 1 . . . . Open Door 8 | . . 1 . . 1 6 . . . Branch Access Points 1 | . . . . . 1 . . . . Unreport Threat 1 | . . . . . . . 1 . . Registered Components 1 | . 1 . . . . . . . . Proto ID Catalog 1 | . . 1 . . . . . . . Release Object 1 | . . 1 . . . . . . . Fabricator Hacks . | . . . . . . . . . . Repair Station Hacks . | . . . . . . . . . . Recycling Unit Hacks 8 | . . . . 3 1 . 4 . . Report Inventory 5 | . . . . 2 1 . 2 . . Retrieve Components 3 | . . . . 1 . . 2 . . Scanalyzer 1 | . . . . 1 . . . . . Retrieve Study 1 | . . . . 1 . . . . . Garrison Access Hacks . | . . . . . . . . . . Unauthorized Hacks 8 | . 3 . . . 2 . 1 2 . Terminals 6 | . 2 . . . 1 . 1 2 . Assimilate 1 | . . . . . . . . 1 . Botnet 5 | . 2 . . . 1 . 1 1 . Fabricators . | . . . . . . . . . . Repair Stations . | . . . . . . . . . . Recycling Units 2 | . 1 . . . 1 . . . . Tunnel 2 | . 1 . . . 1 . . . . Scanalyzers . | . . . . . . . . . . Garrison Access . | . . . . . . . . . . Data Cores Recovered 2 | . . . . . . 1 . 1 . Used . | . . . . . . . . . . Hacking Detections 25 | . 3 . . 5 3 6 4 4 . Full Trace Events 5 | . . . . 2 . 2 1 . . Feedback Events . | . . . . . . . . . . Feedback Blocked . | . . . . . . . . . . Robot Schematics Acquired . | . . . . . . . . . . Robots Built . | . . . . . . . . . . Authchips . | . . . . . . . . . . Time . | . . . . . . . . . . Total Robot Build Rating . | . . . . . . . . . . Part Schematics Acquired 1 | . . . . . 1 . . . . Parts Built . | . . . . . . . . . . Authchips . | . . . . . . . . . . Time . | . . . . . . . . . . Total Part Build Rating . | . . . . . . . . . . Part Studies Acquired 1 | . . . . 1 . . . . . Parts Repaired . | . . . . . . . . . . Time . | . . . . . . . . . . Parts Recycled . | . . . . . . . . . . Recycled Matter . | . . . . . . . . . . Retrieved Matter . | . . . . . . . . . . Retrieved Components 6 | . . . . 1 . . 5 . . Parts Scanalyzed . | . . . . . . . . . . Part Schematics Acquired . | . . . . . . . . . . Parts Damaged . | . . . . . . . . . . Bothacking | -11 -10 -10 -7 -5 -4 -4 -3 -2 -2 ------------ Run | Yrd Mat Sub Scr Fac Fac Ext Res Res Tes Used RIF Installer . | . . . . . . . . . . Robots Hacked . | . . . . . . . . . . Non-combat . | . . . . . . . . . . Combat . | . . . . . . . . . . Robot Hacks Applied . | . . . . . . . . . . Relay Couplers Released 4 | . . . . 4 . . . . . Machine Destruction 4 | . . . . 4 . . . . . Fabnet Peak Effective % . | . . . . . . . . . . Robots Rewired 12 | . . . . 2 . 10 . . . Allies Hacked 2 | . . . . . . 1 1 . . Hacks Repelled . | . . . . . . . . . . Allies | -11 -10 -10 -7 -5 -4 -4 -3 -2 -2 -------- Run | Yrd Mat Sub Scr Fac Fac Ext Res Res Tes Total Allies 25 | . . . 1 6 . 18 . . . Largest Group 16 | . . . 1 5 3 16 4 . . Highest-Rated Group 1249 | . . . 464 660 562 1249 590 . . Highest-Rated Ally 464 | . . . 464 464 464 464 464 . . Total Orders 1 | . . . . . . 1 . . . GUARD 1 | . . . . . . 1 . . . Ally Attacks 612 | . . . 43 62 53 287 167 . . Total Damage 30406 | . . . 3739 3064 3003 11254 9346 . . Kills 172 | . . . 20 17 16 60 59 . . Allies Corrupted 2 | . . . . 2 . . . . . Allies Melted . | . . . . . . . . . . X0-1V1 Amusement Gains 366 | . 12 10 20 93 20 73 46 40 52 Average Entertainment 40 | . 12 10 19 18 73 54 78 61 49 Good Acts 67 | . . 32 3 14 2 7 1 1 7 Bad Acts 68 | . . 39 . 5 2 4 8 5 5 Intel | -11 -10 -10 -7 -5 -4 -4 -3 -2 -2 ------- Run | Yrd Mat Sub Scr Fac Fac Ext Res Res Tes Active Infowar (turns) 7648 | 46 795 822 363 912 572 1641 873 1132 492 Optics 1035 | . . . . . . . . 543 492 Sensors 1551 | . . . . . . . . 1125 426 Terrain 4247 | . . 822 40 912 572 1437 464 . . Traps 751 | . . . . . . . 751 . . Seismic 2441 | 46 795 . 359 649 . . . 268 324 T.N.C. 559 | . . . . 559 . . . . . Machine Analysis 5373 | . . . . 663 572 1641 873 1132 492 Robot Analysis Total . | . . . . . . . . . . Derelict Logs Recovered 5 | . . . 5 . . . . . . Drone Launches . | . . . . . . . . . . Drone Recoveries . | . . . . . . . . . . Exploration | -11 -10 -10 -7 -5 -4 -4 -3 -2 -2 ------------- Run | Yrd Mat Sub Scr Fac Fac Ext Res Res Tes Turns Passed 14836 | 134 987 3167 4603 912 572 1641 1156 1132 532 Spaces Moved 6643 | 58 596 1985 711 732 362 1061 496 508 134 Core 17 | 15 1 . . . . . . . 1 Treads 881 | . . 12 711 . . . . 30 128 Legs 602 | 43 299 . . . . . 255 . 5 Wheels 5143 | . 296 1973 . 732 362 1061 241 478 . Hover . | . . . . . . . . . . Flight . | . . . . . . . . . . Fastest Speed 50 | 50 105 105 160 80 105 106 110 150 158 Average Speed 188 | 144 137 143 641 97 114 113 162 161 174 Slowest Speed 1400 | 200 850 880 880 110 116 121 260 170 1400 Overloaded Moves . | . . . . . . . . . . Propulsion Burnouts . | . . . . . . . . . . Robots Hopped . | . . . . . . . . . . Potential Cave-ins 4 | . . . . . . . . 4 . Cave-ins Triggered 1 | . . . . . . . 1 . . Exploration Rate (%) 39 | 4 72 94 44 24 12 96 18 13 20 Regions Visited 9 Branch Regions 4 Pre-discovered Areas 4 | . 1 1 1 . 1 . . . . Known Exits Taken 4 | . . . . 1 1 1 . 1 . Unknown Exits Taken 5 | 1 1 1 1 . . . 1 . . Scrap Searched 15 | . . 12 3 . . . . . . Spaces Dug 44 | . . . . 11 7 4 2 20 . Terrain Destroyed 487 | . 82 189 . 73 36 42 41 22 2 Melee 20 | . . . . . . . . 20 . Projectile 122 | . . 1 . 26 28 27 36 2 2 AOE 345 | . 82 188 . 47 8 15 5 . . Terrain Rammed . | . . . . . . . . . . Walls Destroyed . | . . . . . . . . . . Machines Disabled . | . . . . . . . . . . Actions | -11 -10 -10 -7 -5 -4 -4 -3 -2 -2 --------- Run | Yrd Mat Sub Scr Fac Fac Ext Res Res Tes Total 8193 | 85 689 2183 754 858 465 1336 687 736 400 Wait 506 | . 18 15 7 19 30 103 17 96 201 Move 6635 | 57 595 1984 710 731 361 1060 496 507 134 Hop . | . . . . . . . . . . Pick Up 162 | 7 12 34 12 29 10 6 20 26 6 Fast Attach 80 | 8 7 9 7 15 9 5 7 12 1 Attach 97 | . . 12 3 6 1 7 28 19 21 Detach 19 | 1 1 1 . 5 1 2 5 3 . Swap 57 | . 4 10 1 7 3 8 9 12 3 Drop 116 | . 8 22 13 11 20 9 10 15 8 Fire 436 | 12 44 91 1 35 30 99 80 24 20 Melee 28 | . . . . . . . . 22 6 Ram 4 | . . . . . . 2 2 . . Kick . | . . . . . . . . . . Crush . | . . . . . . . . . . Escape Stasis 45 | . . . . . . 32 13 . . Rewire 8 | . . 5 . . . 3 . . . Trap . | . . . . . . . . . . Miscellaneous . | . . . . . . . . . . Route ------- -11/Scrapyard -10/Materials (discovered 3 exits: [*Mat] / [*Min] / *Sub) -10/Subcaves (discovered 3 exits: *Mat / *Rec / *Scr) -7/Scraptown -5/Factory (discovered 4 exits: *Fac x4) -4/Factory (discovered 4 exits: Upp x2 / *Ext x2) -4/Extension (discovered 3 exits: *Res x2 / [*Cet]) -3/Research -2/Research -2/Testing History --------- Turn | Location | Event 18 | -11/Scrapyard | Discovered new exit (range 16) 135 | -11/Scrapyard | Entered Materials 339 | -10/Materials | Build established: Mutant 350 | -10/Materials | Discovered new exit (range 4) 683 | -10/Materials | Discovered new exit (range 15) 918 | -10/Materials | Discovered new exit (range 5) 1113 | -10/Materials | Prayed at D.C.S.S. Altar Unit 1122 | -10/Materials | Entered Subcaves 1123 | -10/Subcaves | Approached by a straggling Scientist 1209 | -10/Subcaves | Core integrity permanently improved by X0-1V1 (+250) 1239 | -10/Subcaves | Lost 3 parts (1u2w) 1326 | -10/Subcaves | Ambushed by Subdwellers from Twisted Machinery 1506 | -10/Subcaves | Disturbed a concealed Subdweller 1810 | -10/Subcaves | Shifting Twisted Machinery released Sub. Laser 2044 | -10/Subcaves | Disturbed a concealed Subdweller 2164 | -10/Subcaves | Core integrity restored by X0-1V1 (+105) 2285 | -10/Subcaves | Scientist uncovered a shortcut to Scraptown 2297 | -10/Subcaves | Identified exit to Materials 2297 | -10/Subcaves | X0-1V1 revealed exit location to -8/Materials 2421 | -10/Subcaves | X0-1V1 sent hostile S-10 Pest (x3) 2457 | -10/Subcaves | X0-1V1 caused items to flee you 2460 | -10/Subcaves | X0-1V1 activates XOMVISION 2463 | -10/Subcaves | Identified exit to Recycling 2463 | -10/Subcaves | X0-1V1 revealed exit location to -7/Recycling 2521 | -10/Subcaves | Learned location of Zion (-6) 2521 | -10/Subcaves | Met a Zionite searching for "candidates" 2524 | -10/Subcaves | Discovered exit to Materials (range 8) 2586 | -10/Subcaves | X0-1V1 sent you into danger 2611 | -10/Subcaves | Core integrity restored by X0-1V1 (+125) 2619 | -10/Subcaves | Items stopped fleeing you 2682 | -10/Subcaves | X0-1V1 sent hostile S-10 Pest (x4) 2743 | -10/Subcaves | A swath of the cavern ceiling suddenly collapsed 2790 | -10/Subcaves | Shifting Twisted Machinery released Barrage Gun 2805 | -10/Subcaves | Shifting Twisted Machinery released Sub. Shrapnel Launcher 2921 | -10/Subcaves | System corruption reached 10% 3038 | -10/Subcaves | X0-1V1 activates XOMVISION 3099 | -10/Subcaves | Visited 4L-MR0's lab 3122 | -10/Subcaves | Found Maxwheels 3564 | -10/Subcaves | X0-1V1 activates XOMVISION 3856 | -10/Subcaves | X0-1V1 sent hostile G-34 Mercenary (x5) 3904 | -10/Subcaves | Core integrity restored by X0-1V1 (+130) 3909 | -10/Subcaves | X0-1V1 mutated your Propulsion slot to Power slot 3926 | -10/Subcaves | X0-1V1 collapsed Materials access 3970 | -10/Subcaves | X0-1V1 sent hostile S-10 Pest (x5) 3973 | -10/Subcaves | Build established: Hauler-Mutant 4045 | -10/Subcaves | Found SUBCON Basin 4120 | -10/Subcaves | X0-1V1 mutated your Power slot to Utility slot 4210 | -10/Subcaves | X0-1V1 activates XOMVISION 4289 | -10/Subcaves | Entered Scraptown 4421 | -7/Scraptown | Heard Great Nut preacher, LISTEN AND RECITE! 5337 | -7/Scraptown | Visited Cave Peace 5530 | -7/Scraptown | Visited Symbiants 5741 | -7/Scraptown | Scanned Subdweller tech in exchange for log data 5759 | -7/Scraptown | Learned Research terminal intel 5777 | -7/Scraptown | Learned 12 Research zone layouts 5785 | -7/Scraptown | Learned location of Armory (-3) 5794 | -7/Scraptown | Learned Research security intel 6033 | -7/Scraptown | Discovered new exit (range 3) 8348 | -7/Scraptown | X0-1V1 brought Wyrm Statue to life 8348 | -7/Scraptown | Attacked by Scraptown defenders 8461 | -7/Scraptown | Melee accuracy permanently improved by X0-1V1 (+8%; -80 max core) 8820 | -7/Scraptown | X0-1V1 activates XOMVISION 8827 | -7/Scraptown | Build established: Mutant 8892 | -7/Scraptown | Entered Factory 8892 | -5/Factory | Accompanied by 1 ally 8892 | -5/Factory | Evolved 10 slots: Power x1, Propulsion x4, Utility x5 8893 | -5/Factory | Attached Maxwheels, gained temporary slots: Weapon x2 8919 | -5/Factory | Matter capacity permanently improved by X0-1V1 (+500; -250 max core) 9066 | -5/Factory | X0-1V1 released a cloud of subatomizers 9126 | -5/Factory | X0-1V1 foreshadows a heat wave 9166 | -5/Factory | X0-1V1 activates XOMVISION 9181 | -5/Factory | Identified exit to Factory 9181 | -5/Factory | X0-1V1 revealed exit location to -4/Factory 9227 | -5/Factory | X0-1V1 redirected Transport squads to designated parking area 9259 | -5/Factory | Discovered exit to Factory (range 18) 9309 | -5/Factory | Ambient heat levels rising (+10) 9327 | -5/Factory | X0-1V1 sent you to a vault 9332 | -5/Factory | Build established: Scavenger-Skirmisher 9433 | -5/Factory | Ambient heat levels rising (+10) 9574 | -5/Factory | X0-1V1 sent you into danger 9638 | -5/Factory | Ambient heat levels falling (-10) 9698 | -5/Factory | Sterilization system engaged 9698 | -5/Factory | Non-combat units ordered to evacuate 9712 | -5/Factory | Cargo convoy interrupted 9718 | -5/Factory | X0-1V1 revealed exit location to -4/Factory 9747 | -5/Factory | Discovered exit to Factory (range 14) 9798 | -5/Factory | Combat units ordered to evacuate 9804 | -5/Factory | Entered another Factory area 9804 | -4/Factory | Accompanied by 3 allies 9804 | -4/Factory | Evolved 2 slots: Propulsion x1, Utility x1 10004 | -4/Factory | X0-1V1 sent you into danger 10026 | -4/Factory | X0-1V1 activates XOMVISION 10141 | -4/Factory | Garrison activated, responded to threat 10189 | -4/Factory | Build established: Skirmisher 10238 | -4/Factory | Identified exit to Upper Caves 10238 | -4/Factory | Identified exit to Extension 10310 | -4/Factory | X0-1V1 activates XOMVISION 10376 | -4/Factory | Entered Extension 10376 | -4/Extension | Accompanied by 2 allies 10605 | -4/Extension | Rescued a captive Derelict 10610 | -4/Extension | Rescued a captive Derelict 10621 | -4/Extension | Rescued A7 10644 | -4/Extension | Rescued a captive Derelict 10644 | -4/Extension | Rescued a captive Derelict 10833 | -4/Extension | Rescued a captive Derelict 10833 | -4/Extension | Rescued a captive Derelict 10855 | -4/Extension | Spotted B-86 Titan 10869 | -4/Extension | X0-1V1 activates XOMVISION 10876 | -4/Extension | First assault squad dispatched 10973 | -4/Extension | Build established: Commander-Skirmisher 11360 | -4/Extension | Energy Cycler disabled 11360 | -4/Extension | Rescued a captive Derelict 11360 | -4/Extension | Rescued a captive Derelict 11361 | -4/Extension | Rescued a captive Derelict 11363 | -4/Extension | Rescued a captive Derelict 11365 | -4/Extension | Rescued a captive Derelict 11366 | -4/Extension | Rescued a captive Derelict 11399 | -4/Extension | X0-1V1 added 0b10 threat records associated with you (minor) 11477 | -4/Extension | Lost 4 allies 11763 | -4/Extension | Discovered new exit (range 10) 11764 | -4/Extension | Discovered new exit (range 6) 11862 | -4/Extension | Lost 3 parts (1n2u) 11869 | -4/Extension | Identified exit to Research 11869 | -4/Extension | X0-1V1 revealed exit location to -3/Research 12000 | -4/Extension | Build established: Skirmisher 12017 | -4/Extension | Entered Research 12017 | -3/Research | Accompanied by 4 allies 12017 | -3/Research | Evolved 2 slots: Utility x1, Weapon x1 12020 | -3/Research | Loaded intel: 23 terminal locations 12031 | -3/Research | Found Adv. Powered Armor 12067 | -3/Research | Found Gamma Bomb Array 12254 | -3/Research | Spotted B-86 Titan 12277 | -3/Research | Allies destroyed B-86 Titan 12293 | -3/Research | Garrison activated, responded to threat 12598 | -3/Research | X0-1V1 enhanced Transport squad support 12622 | -3/Research | High security lockdown imminent 12702 | -3/Research | High security lockdown engaged 12735 | -3/Research | Build established: Scavenger-Skirmisher 12771 | -3/Research | Crushed by falling debris 12771 | -3/Research | System corruption reached 10% 12802 | -3/Research | Lost 4 parts (4u) 12856 | -3/Research | Spotted Investigator 12856 | -3/Research | Scanned by Researcher 12866 | -3/Research | Destroyed Investigator 12966 | -3/Research | X0-1V1 announced a LAN party 13090 | -3/Research | Lost 3 parts (1n1u1w) 13153 | -3/Research | X0-1V1 upgraded hostiles (x1) 13162 | -3/Research | Discovered new exit (range 9) 13173 | -3/Research | Entered another Research area 13173 | -2/Research | Evolved 2 slots: Utility x1, Weapon x1 13197 | -2/Research | Lost 5 parts (1p2n2u) 13423 | -2/Research | First assault squad dispatched 13480 | -2/Research | Build established: Scavenger-Assassin 13596 | -2/Research | Lost 4 parts (2n1u1w) 13804 | -2/Research | X0-1V1 sent hostile X-87 Electro (x3) 13834 | -2/Research | X0-1V1 added 0b10 threat records associated with you (major) 14139 | -2/Research | Found Prototype Device 14139 | -2/Research | Identified Exp. Shock Absorption System 14269 | -2/Research | Discovered new exit (range 10) 14300 | -2/Research | X0-1V1 caused items to flee you 14302 | -2/Research | Identified exit to Testing 14305 | -2/Research | Entered Testing 14317 | -2/Testing | Sensors blinded by X0-1V1 14323 | -2/Testing | X0-1V1 put everyone to sleep 14323 | -2/Testing | Found Prototype Energy Cannon 14323 | -2/Testing | Identified Cld. Nova Cannon 14337 | -2/Testing | X0-1V1 sent hostile X-87 Electro (x3) 14377 | -2/Testing | X0-1V1 enhanced Transport squad support 14432 | -2/Testing | Build established: Assassin 14729 | -2/Testing | System corruption reached 10% 14759 | -2/Testing | System corruption reached 30% 14786 | -2/Testing | Weapon slot count temporarily expanded by X0-1V1 (+3) 14826 | -2/Testing | Core integrity fell below 50% 14835 | -2/Testing | Core integrity fell below 20% 14837 | -2/Testing | Destroyed by P-80 Master with Gamma Rifle Last Messages --------------- 14826_ X-87 Electro destroyed. 14827_ R-10 Processor collects Corrupted Energy Well. 14827_ Slug penetrates Wall. 14827_ Com. HERF Cannon destroyed. 14827_ Slug penetrates Wall. 14830_ R-10 Processor collects Corrupted Adv. Cooling System. 14830_ Slug penetrates Wall. 14830_ Adv. Cooling System destroyed. 14831_ Adv. Heat Sink destroyed. 14831_ Slug penetrates Wall. 14832_ P-80 Master resets P-80 Master, system corruption cleaned. 14833_ R-10 Processor collects Imp. Antigrav System. 14833_ Slug penetrates Wall. 14834_ Exp. Energy Well destroyed. 14834_ Adv. Heat Sink destroyed. 14834_ G-73 Enforcer destroyed. 14835_ X0-1V1 manipulates the space around you (+23% KI resistance). 14836_ R-10 Processor collects Phase Gun. 14837_ Wall collapses. 14837_ X0-1V1 giggles madly! Map ----- +----------------------------------------------------+ | ?????????????????????????????????????????????????? | | ""?"""??????????????????? #??????????????????????? | | ""?"""??????????????????? ???????????????????????? | | ""?"""?????????????????? #??????????????????????? | | ???????????????????????? ???????????????????????? | | ???????????????????????? ??????????????""G""????? | | ??????????????????###### ?##????######??"?"?????? | | ?????????????????? * ? ???? #??"?"?????? | | ?????????????????? ???? #??????????? | | ?????????????????? """"" """"" #???"""????? | | ?????????????????? """"" """"" +???"""????? | | #############?????# """"" """"" #???"""????? | | #?????# #?????????? | | """ """ """ #?????# """"" """"" ########## | | """ """ """ #?????# """"" """" k ^ """"" | | """ """ """ ??????# "" "" """"" ""T"" ? | | ? ????????#! u ^ ? | | ??? ??????????# """" """" u ??? | | #####+############# """"" """" """" | | """"" """" ] ! """" | | $%$ """"" | | $ # | | hR # | | ###+##############c######R%h #?????? | | # #??# gxgp!=g%! #??????????? | | # #??# !%x@=######## #??????????? | | # #??# " p%[#??????# #??????????? | | # #??# """ "R"!!#??????# #??????????? | | + #??# """" "!" #??????#####??????????? | | # #??# "" """p #?????????????????????? | | ### =#??# g #?????????????????????? | | ??# #??# #?????????????????????? | | ??# #??# #?????????????????????? | | ??##########??# #?????????????????????? | | ??????????????# #?????????????????????? | | ??????????????# #?????????????????????? | | ??????????????##############?????????????????????? | | ?????????????????????????????????????????????????? | | | | | | | | | | | | | | | | | | | | | | | | | +----------------------------------------------------+ Best States ------------- Heat Dissipation 118 Energy Generation 46 Energy Capacity 2565 Matter Stores 1377 Matter Capacity 1500 Sight Range 26 Robot Scan Range 18 Terrain Scan Range 16 Terrain Scan Density 210 Power Amplification 40 Additional Mass Support 9 Armor Coverage 625 Resistance: TH 25 Resistance: EX 75 Core Shielding 30 Phase Shifting 15 Evasion (%) 55 Core Analysis 6 Recoil Reduction 6 Kinecelleration 40 Offensive Hacking 14 Defensive Hacking 10 Item Schematics ----------------- Quantum Reactor | -4/Factory | Hacked Robot Schematics ------------------ None Fabricated ------------ Nothing Repaired ---------- Nothing Studied --------- Wheel | -5/Factory | Hacked Alien Tech Used ----------------- None Achievements -------------- Can't Touch This Executioner Generalissimo Into The Furnace Low-level Research Statue Heist Challenges ------------ None Game ------ Seed TeleporterMolecularSabre Manual? 0 Play Time 02:41:18 Cumulative 152.3 hours Start 2026.09.07 @ 16:01:26 End 2026.09.07 @ 19:25:31 Sessions 1 Manual Loads 0 Difficulty Rogue Special Mode None Game No. 133 Rogue 131 Adventurer 2 Explorer 0 Win Type - Total 0 Types 0/0/0/0/0/0/0/0/0/0 Lore% 60 Gallery% 52 Achievement% 44 Wizard Run 0 Options --------- Layout 0 ASCII 0 Keyboard 0 Movement Mouse Keybinds 0 Fullscreen 2 Font 24/Smallcaps Map View 76x50 Zoom Use 0% Tactical HUD 1 Map Filters NONE Filters NONE Steam 1 RUN: 9cc95e8c-2a77-4d05-a953-d26308349074